bitfinex-derivatives/quotes_BTCF0:USTF0_20241226
["timestamp","ask_amount","ask_price","bid_price","bid_amount"]
[1735232959839,0.051962,96305.0,96291.0,0.051969]
[1735232960631,0.00155787,96314.0,96291.0,0.051969]
[1735232960934,0.051963,96304.0,96291.0,0.051969]
[1735232961444,0.00155787,96314.0,96286.0,0.051972]
[1735232961830,0.00155787,96314.0,96291.0,0.001]
[1735232962129,0.051969,96293.0,96291.0,0.001]
[1735232962726,0.051969,96293.0,96291.0,0.003]
[1735232964034,0.351969,96293.0,96291.0,0.002]
[1735232964338,0.051972,96287.0,96286.0,0.002]
[1735232964739,0.164,96292.0,96280.0,0.00155782]
[1735232964942,0.051975,96281.0,96280.0,0.00155782]
[1735232965243,0.05198,96272.0,96271.0,0.30913023]
[1735232966340,0.05198,96272.0,96270.0,0.01330397]
[1735232966541,0.05498,96272.0,96263.0,0.1682]
[1735232966742,0.051984,96264.0,96263.0,0.1682]
[1735232967243,0.051984,96264.0,96263.0,0.01336641]
[1735232967436,0.05598,96272.0,96257.0,0.1723]
[1735232967738,0.051987,96258.0,96257.0,0.1723]
[1735232968832,0.051987,96258.0,96257.0,0.001]
[1735232969338,0.051991,96252.0,96251.0,0.00155834]
[1735232969530,0.051991,96252.0,96251.0,0.0146046]
[1735232969727,0.051991,96252.0,96251.0,0.00155834]
[1735232971539,0.051991,96252.0,96251.0,0.00255834]
[1735232972742,0.051981,96269.0,96257.0,0.051988]
[1735232972933,0.051981,96269.0,96258.0,0.051987]
[1735232973134,0.051981,96269.0,96259.0,0.165]
[1735232974637,0.051975,96282.0,96259.0,0.165]
[1735232974940,0.051985,96263.0,96259.0,0.168]
[1735232975347,0.051985,96263.0,96259.0,0.174]
[1735232975837,0.051982,96269.0,96259.0,0.174]
[1735232976042,0.051983,96267.0,96259.0,0.174]
[1735232976234,0.001,96282.0,96259.0,0.171]
[1735232976439,0.051983,96266.0,96259.0,0.173]
[1735232977141,0.051983,96266.0,96259.0,0.172]
[1735232977442,0.051983,96266.0,96259.0,0.18511198]
[1735232977644,0.051984,96265.0,96259.0,0.18511198]
[1735232979143,0.051984,96265.0,96259.0,0.18611198]
[1735232979349,0.052984,96265.0,96259.0,0.18611198]
[1735232980432,0.001,96265.0,96259.0,0.18611198]
[1735232980636,0.01327676,96293.0,96259.0,0.18611198]
[1735232980637,0.01327676,96293.0,96259.0,0.01511198]
[1735232980842,0.051986,96261.0,96259.0,0.02011198]
[1735232981241,0.051986,96261.0,96259.0,0.01611198]
[1735232981439,0.051986,96261.0,96259.0,0.02111198]
[1735232981635,0.051986,96261.0,96259.0,0.01911198]
[1735232981837,0.051986,96261.0,96259.0,0.01411198]
[1735232982047,0.051986,96261.0,96259.0,0.01811198]
[1735232982441,0.051986,96261.0,96259.0,0.01411198]
[1735232982638,0.051986,96261.0,96259.0,0.01511198]
[1735232983937,0.052986,96261.0,96259.0,0.01411198]
[1735232984742,0.352986,96261.0,96259.0,9.8e-07]
[1735232984949,0.051994,96245.0,96244.0,0.01310814]
[1735232985137,0.051999,96236.0,96231.0,0.30913023]
[1735232985638,0.051999,96236.0,96235.0,0.01329449]
[1735232985945,0.051999,96236.0,96235.0,0.00012522]
[1735232987037,0.051999,96236.0,96235.0,0.00112522]
[1735232987847,0.051999,96236.0,96235.0,0.00212522]
[1735232988747,0.14506255,96245.0,96211.0,0.00155897]
[1735232988748,0.09306755,96245.0,96211.0,0.00155897]
[1735232988947,0.22,96247.0,96211.0,0.00155897]
[1735232988948,0.052011,96214.0,96212.0,0.1659]
[1735232989140,0.052011,96214.0,96212.0,0.3374]
[1735232990844,0.052011,96214.0,96212.0,0.3384]
[1735232991035,0.052011,96214.0,96212.0,0.3414]
[1735232993352,0.05356021,96234.0,96212.0,0.3414]
[1735232993549,0.052001,96234.0,96212.0,0.3414]
[1735232993846,0.05201,96217.0,96212.0,0.3414]
[1735232994444,0.05201,96217.0,96212.0,0.3384]
[1735232994652,0.05201,96217.0,96212.0,0.3414]
[1735232998643,0.05201,96217.0,96212.0,0.004]
[1735232998849,0.052011,96214.0,96212.0,0.004]
[1735232999246,0.052007,96222.0,96212.0,0.004]
[1735232999444,0.00155921,96237.0,96213.0,0.3268]
[1735232999641,0.052004,96227.0,96215.0,0.05201]
[1735233000244,0.00155921,96237.0,96215.0,0.05201]
[1735233000442,0.052006,96224.0,96213.0,0.3268]
[1735233000642,0.052008,96221.0,96213.0,0.3268]
[1735233000848,0.052008,96220.0,96215.0,0.002]
[1735233001443,0.052008,96220.0,96215.0,0.006]
[1735233002253,0.052008,96220.0,96215.0,0.009]
[1735233003049,0.052008,96220.0,96215.0,0.001]
[1735233003255,0.052008,96220.0,96215.0,0.003]
[1735233003654,0.052008,96220.0,96215.0,0.006]
[1735233004152,0.052008,96220.0,96215.0,0.002]
[1735233004347,0.052008,96220.0,96215.0,0.003]
[1735233005054,0.00155921,96237.0,96215.0,0.303]
[1735233005246,0.09150834,96243.0,96215.0,0.303]
[1735233005448,0.09150834,96243.0,96232.0,0.052001]
[1735233005647,0.09150834,96243.0,96233.0,0.1673]
[1735233006047,0.051993,96247.0,96234.0,0.3244]
[1735233006253,0.051993,96247.0,96234.0,0.3764]
[1735233006652,0.051993,96247.0,96235.0,0.051999]
[1735233006855,0.051987,96260.0,96247.0,0.051993]
[1735233007150,0.051987,96258.0,96247.0,0.051993]
[1735233007743,0.15468139,96261.0,96235.0,0.007]
[1735233007953,0.001,96247.0,96235.0,0.007]
[1735233008559,0.00155877,96263.0,96235.0,0.307]
[1735233008852,0.15312262,96271.0,96268.0,0.051982]
[1735233009046,0.15312262,96271.0,96269.0,0.1605]
[1735233009557,0.051984,96265.0,96252.0,0.05199]
[1735233009755,0.051984,96265.0,96253.0,0.05199]
[1735233009950,0.012,96271.0,96268.0,0.001]
[1735233010459,0.051989,96255.0,96249.0,0.1634]
[1735233010759,0.051989,96255.0,96249.0,0.17579788]
[1735233011456,0.051987,96259.0,96249.0,0.17579788]
[1735233011650,0.051988,96258.0,96249.0,0.17579788]
[1735233011855,0.1695,96270.0,96249.0,0.17579788]
[1735233012048,0.051984,96265.0,96250.0,0.227191]
[1735233012452,0.051991,96252.0,96249.0,0.01339788]
[1735233012657,0.17606463,96271.0,96249.0,0.01339788]
[1735233012847,0.17606463,96271.0,96249.0,0.01439788]
[1735233013043,0.051991,96251.0,96249.0,0.01339788]
[1735233013247,0.051991,96251.0,96249.0,0.01239788]
[1735233013451,0.051991,96251.0,96243.0,0.051995]
[1735233013852,0.051991,96251.0,96249.0,0.001]
[1735233015560,0.12408363,96265.0,96250.0,0.051992]
[1735233015561,0.051989,96256.0,96250.0,0.051992]
[1735233016664,0.12408363,96265.0,96249.0,0.001]
[1735233016960,0.051982,96268.0,96244.0,0.051994]
[1735233017161,0.051982,96268.0,96250.0,0.003]
[1735233017461,0.051992,96250.0,96244.0,0.051994]
[1735233018761,0.051993,96249.0,96244.0,0.051994]
[1735233019063,0.051993,96249.0,96244.0,0.052994]
[1735233019264,0.051993,96249.0,96244.0,0.004]
[1735233019452,0.051993,96249.0,96245.0,0.051994]
[1735233020962,0.051993,96249.0,96245.0,0.053994]
[1735233021258,0.051993,96249.0,96245.0,0.002]
[1735233021458,0.051993,96249.0,96245.0,0.003]
[1735233022061,0.00139772,97081.0,96245.0,0.003]
[1735233022261,0.051979,96275.0,96248.0,0.051993]
[1735233022564,0.05199,96254.0,96248.0,0.051993]
[1735233022758,0.051975,96282.0,96248.0,0.051993]
[1735233022759,0.05199,96253.0,96248.0,0.051993]
[1735233022957,0.051991,96251.0,96248.0,0.051993]
[1735233023156,0.051994,96246.0,96245.0,0.003]
[1735233023767,0.051973,96285.0,96245.0,0.003]
[1735233023966,0.051992,96250.0,96245.0,0.003]
[1735233024263,0.051992,96250.0,96245.0,0.001]
[1735233024466,0.051992,96250.0,96245.0,0.002]
[1735233024966,0.051992,96250.0,96245.0,0.053994]
[1735233025265,0.051992,96250.0,96246.0,0.051994]
[1735233026951,0.051986,96261.0,96246.0,0.002]
[1735233027157,0.1097,96284.0,96247.0,0.051993]
[1735233027354,0.01282592,96294.0,96246.0,0.3]
[1735233027560,0.00155829,96300.0,96269.0,0.051981]
[1735233027766,0.051978,96276.0,96270.0,0.3311]
[1735233028063,0.051969,96293.0,96271.0,0.1699]
[1735233028259,0.051969,96293.0,96287.0,0.051971]
[1735233028459,0.051969,96293.0,96288.0,0.051971]
[1735233028859,0.00155829,96300.0,96271.0,0.1829852]
[1735233029065,0.051952,96325.0,96287.0,0.051971]
[1735233029261,0.051965,96299.0,96280.0,0.051975]
[1735233029455,0.051953,96322.0,96291.0,0.051969]
[1735233029659,0.00155805,96327.0,96288.0,0.001]
[1735233029860,0.051964,96301.0,96297.0,0.051966]
[1735233030160,0.051965,96300.0,96298.0,0.1699]
[1735233030369,0.051965,96300.0,96299.0,0.1709]
[1735233030954,0.051968,96294.0,96288.0,0.052971]
[1735233031155,0.05197,96290.0,96288.0,0.4651]
[1735233031557,0.006,96300.0,96288.0,0.4651]
[1735233031757,0.05196,96308.0,96298.0,0.051966]
[1735233031973,0.051961,96307.0,96298.0,0.051966]
[1735233032172,0.051961,96307.0,96299.0,0.1731]
[1735233032375,0.051956,96317.0,96299.0,0.4731]
[1735233032562,0.00955805,96327.0,96299.0,0.4731]
[1735233032762,0.00155805,96327.0,96299.0,0.7731]
[1735233033060,0.051952,96324.0,96301.0,0.051964]
[1735233033265,0.051941,96344.0,96311.0,0.051959]
[1735233033474,0.051953,96323.0,96312.0,0.5133]
[1735233033658,0.051954,96321.0,96312.0,0.9764]
[1735233033865,0.051954,96321.0,96316.0,0.30913023]
[1735233034063,0.051954,96321.0,96316.0,0.60913023]
[1735233035066,0.001,96321.0,96316.0,0.60913023]
[1735233035273,0.051949,96330.0,96320.0,0.24582035]
[1735233035466,0.0015576,96343.0,96320.0,0.24582035]
[1735233035774,0.0015576,96343.0,96321.0,0.222]
[1735233036070,0.0127894,96360.0,96321.0,0.822]
[1735233036279,0.0127894,96360.0,96356.0,0.051934]
[1735233036472,0.051922,96379.0,96357.0,0.1631]
[1735233036676,0.051925,96374.0,96358.0,0.401053]
[1735233036976,0.00155697,96383.0,96363.0,0.051931]
[1735233036977,0.051922,96379.0,96363.0,0.051931]
[1735233037172,0.00155697,96383.0,96358.0,0.64912]
[1735233037369,0.051914,96394.0,96371.0,0.051926]
[1735233037679,0.051914,96394.0,96372.0,0.051925]
[1735233038068,0.051914,96394.0,96372.0,0.351925]
[1735233038367,0.003,96379.0,96372.0,0.351925]
[1735233038568,0.1,96400.0,96372.0,0.351925]
[1735233038761,0.1,96400.0,96372.0,0.3]
[1735233038961,0.1,96400.0,96372.0,0.303]
[1735233039172,0.051923,96378.0,96372.0,0.303]
[1735233040172,0.051923,96378.0,96372.0,0.308]
[1735233040575,0.051923,96378.0,96372.0,0.303]
[1735233040775,0.051923,96378.0,96372.0,0.307]
[1735233040985,0.051919,96385.0,96372.0,0.307]
[1735233041366,0.1,96400.0,96372.0,0.307]
[1735233041970,0.051919,96385.0,96372.0,0.306]
[1735233042279,0.1,96400.0,96372.0,0.31925863]
[1735233042481,0.05192,96383.0,96372.0,0.31925863]
[1735233042677,0.051921,96381.0,96372.0,0.31825863]
[1735233042882,0.051921,96381.0,96372.0,0.32125863]
[1735233043180,0.051921,96381.0,96372.0,0.31625863]
[1735233043370,0.051921,96381.0,96372.0,0.32125863]
[1735233043572,0.1,96400.0,96372.0,0.32125863]
[1735233043771,0.051922,96380.0,96372.0,0.32125863]
[1735233044467,0.051917,96390.0,96373.0,0.051925]
[1735233044670,0.051917,96390.0,96372.0,0.32125863]
[1735233044870,0.051917,96390.0,96372.0,0.32025863]
[1735233045267,0.051913,96397.0,96372.0,0.32025863]
[1735233045573,0.051913,96397.0,96379.0,0.051922]
[1735233045775,0.1,96400.0,96379.0,0.051922]
[1735233045973,0.1,96400.0,96387.0,0.051918]
[1735233046278,0.1,96400.0,96388.0,0.1644]
[1735233046479,0.051911,96399.0,96388.0,0.1644]
[1735233046678,0.051911,96399.0,96388.0,0.4644]
[1735233049381,0.051911,96399.0,96388.0,0.48053184]
[1735233050082,0.051911,96399.0,96388.0,0.48653184]
[1735233050284,0.1,96400.0,96389.0,0.051917]
[1735233050775,0.1,96400.0,96389.0,0.351917]
[1735233050980,0.051911,96399.0,96389.0,0.351917]
[1735233051178,0.1,96400.0,96394.0,0.051914]
[1735233051369,0.151911,96400.0,96389.0,0.3]
[1735233051772,0.151911,96400.0,96389.0,0.303]
[1735233052282,0.1,96400.0,96389.0,0.303]
[1735233052482,0.051912,96398.0,96389.0,0.308]
[1735233052888,0.051912,96398.0,96389.0,0.303]
[1735233053084,0.051912,96398.0,96389.0,0.308]
[1735233053879,0.051912,96398.0,96390.0,0.051916]
[1735233054481,0.051912,96398.0,96390.0,0.351916]
[1735233055589,0.051912,96398.0,96390.0,0.357916]
[1735233055794,0.051916,96391.0,96390.0,0.306]
[1735233056288,0.051916,96391.0,96390.0,0.308]
[1735233056884,0.051916,96391.0,96390.0,0.007]
[1735233057679,0.051903,96415.0,96390.0,0.005]
[1735233057883,0.051903,96415.0,96390.0,0.007]
[1735233058182,0.051916,96391.0,96390.0,0.007]
[1735233058491,0.051916,96391.0,96390.0,0.005]
[1735233058676,0.051916,96391.0,96390.0,0.006]
[1735233058881,0.051916,96391.0,96390.0,0.004]
[1735233059583,0.051916,96391.0,96390.0,0.002]
[1735233060295,0.051916,96391.0,96390.0,0.302]
[1735233060590,0.051905,96411.0,96392.0,0.051915]
[1735233060889,0.00155669,96413.0,96390.0,0.302]
[1735233061090,0.051916,96392.0,96390.0,0.002]
[1735233061689,0.051916,96392.0,96390.0,0.001]
[1735233062091,0.051916,96390.0,96389.0,0.24582035]
[1735233063279,0.00155668,96413.0,96388.0,0.01313184]
[1735233063492,0.00155668,96413.0,96384.0,0.30913023]
[1735233063687,0.051916,96391.0,96384.0,0.60913023]
[1735233064294,0.051917,96389.0,96384.0,0.3]
[1735233064488,0.051909,96404.0,96384.0,0.3165856]
[1735233064789,0.051919,96385.0,96384.0,0.0185856]
[1735233064979,0.051919,96385.0,96384.0,0.002]
[1735233065595,0.051915,96393.0,96384.0,0.001]
[1735233065790,0.051919,96385.0,96384.0,0.2919975]
[1735233067286,0.051919,96385.0,96384.0,0.2909975]
[1735233071085,0.051919,96385.0,96357.0,0.051934]
[1735233071086,0.051919,96385.0,96383.0,0.24660854]
[1735233071285,0.051919,96384.0,96383.0,0.24660854]
[1735233071487,0.051919,96384.0,96383.0,0.00348454]
[1735233071690,0.051922,96379.0,96378.0,0.30826067]
[1735233072687,0.051925,96373.0,96372.0,0.30826067]
[1735233073890,0.05192,96383.0,96372.0,0.60826067]
[1735233074084,0.051915,96392.0,96372.0,0.3]
[1735233074289,0.051912,96398.0,96379.0,0.051922]
[1735233074484,0.051912,96397.0,96396.0,0.051913]
[1735233075093,0.051916,96392.0,96380.0,0.5025]
[1735233075295,0.051916,96392.0,96389.0,0.051916]
[1735233075491,0.051916,96392.0,96384.0,0.37005033]
[1735233075792,0.051916,96392.0,96390.0,0.051916]
[1735233076190,0.051916,96392.0,96390.0,0.351916]
[1735233076591,0.051904,96412.0,96390.0,0.351916]
[1735233076789,0.051912,96397.0,96396.0,0.001]
[1735233077188,0.051896,96428.0,96396.0,0.052913]
[1735233077388,0.0033,96429.0,96396.0,0.301]
[1735233077591,0.051909,96404.0,96401.0,0.05191]
[1735233078390,0.05191,96401.0,96398.0,0.3077212]
[1735233078692,0.05191,96401.0,96398.0,0.6077212]
[1735233078894,0.15381008,96439.0,96398.0,0.62364798]
[1735233079192,0.15381008,96439.0,96403.0,0.051909]
[1735233079396,0.15381008,96439.0,96407.0,0.051907]
[1735233079397,0.051891,96438.0,96407.0,0.051907]
[1735233079598,0.051891,96438.0,96418.0,0.051901]
[1735233079796,0.051891,96438.0,96404.0,0.1773]
[1735233079797,0.15381008,96439.0,96419.0,0.51156]
[1735233079985,0.14202116,96453.0,96420.0,0.03993837]
[1735233080187,0.14202116,96453.0,96429.0,0.051895]
[1735233080188,0.051887,96446.0,96429.0,0.051895]
[1735233080498,0.051887,96446.0,96430.0,0.1773]
[1735233080691,0.051887,96446.0,96430.0,0.47574332]
[1735233081290,0.051887,96446.0,96430.0,0.52763732]
[1735233082096,0.051881,96456.0,96440.0,0.30689647]
[1735233082302,0.00155578,96458.0,96440.0,0.30689647]
[1735233082490,0.00155578,96458.0,96440.0,0.60533979]
[1735233082792,0.051884,96451.0,96440.0,0.60533979]
[1735233083197,0.001,96446.0,96440.0,0.60533979]
[1735233083400,0.051882,96453.0,96447.0,0.18383456]
[1735233083598,0.00155578,96458.0,96447.0,0.18383456]
[1735233083790,0.051883,96452.0,96447.0,0.48227788]
[1735233084702,0.051883,96452.0,96447.0,0.29844332]
[1735233085096,0.051883,96452.0,96447.0,0.29944332]
[1735233085497,0.00155578,96458.0,96447.0,0.29944332]
[1735233085698,0.05188,96457.0,96447.0,0.29944332]
[1735233085901,0.00155578,96458.0,96447.0,0.29944332]
[1735233086101,0.051882,96455.0,96447.0,0.29944332]
[1735233086305,0.00155578,96458.0,96451.0,0.051883]
[1735233086803,0.00155578,96458.0,96451.0,0.35032632]
[1735233088008,0.00155578,96458.0,96451.0,0.29844332]
[1735233088597,0.00155578,96458.0,96452.0,0.051882]
[1735233088892,0.00155578,96458.0,96451.0,0.29844332]
[1735233088893,0.051872,96472.0,96454.0,0.051881]
[1735233089096,0.051872,96472.0,96455.0,0.162]
[1735233089496,0.051872,96472.0,96455.0,0.46044332]
[1735233090599,0.051873,96470.0,96455.0,0.46044332]
[1735233091105,0.051873,96470.0,96455.0,0.46038954]
[1735233091998,0.051873,96470.0,96456.0,0.1621]
[1735233092505,0.051873,96470.0,96457.0,0.05188]
[1735233092695,0.052873,96470.0,96457.0,0.05188]
[1735233092894,0.052873,96470.0,96457.0,0.35032332]
[1735233094202,0.051873,96470.0,96457.0,0.35032332]
[1735233094405,0.052873,96470.0,96457.0,0.35032332]
[1735233098301,0.001,96470.0,96457.0,0.35032332]
[1735233098503,0.051874,96469.0,96457.0,0.35032332]
[1735233099810,0.052874,96469.0,96457.0,0.35032332]
[1735233100110,0.052874,96469.0,96457.0,0.35332332]
[1735233100412,0.01696061,96483.0,96457.0,0.35532332]
[1735233100608,0.051864,96487.0,96457.0,0.35532332]
[1735233100910,0.051874,96469.0,96457.0,0.35532332]
[1735233102310,0.051874,96469.0,96457.0,0.35332332]
[1735233102513,0.051874,96469.0,96457.0,0.35532332]
[1735233103107,0.051874,96469.0,96457.0,0.35332332]
[1735233103300,0.051874,96469.0,96457.0,0.35532332]
[1735233103903,0.051874,96469.0,96460.0,0.051878]
[1735233104314,0.051874,96469.0,96460.0,0.35032132]
[1735233105313,0.051874,96469.0,96460.0,0.35232132]
[1735233105611,0.06844972,96490.0,96460.0,0.35232132]
[1735233105612,0.051874,96468.0,96460.0,0.35232132]
[1735233106408,0.00155537,96493.0,96460.0,0.35232132]
[1735233106409,0.00155537,96493.0,96460.0,0.30044332]
[1735233106609,0.00155537,96493.0,96461.0,0.34848]
[1735233106811,0.00155537,96493.0,96463.0,0.222]
[1735233107011,0.00155537,96493.0,96486.0,0.051864]
[1735233107215,0.00155537,96493.0,96487.0,0.5005]
[1735233107720,0.09844463,96500.0,96498.0,0.051858]
[1735233107908,0.12375637,96518.0,96488.0,0.222]
[1735233108307,0.12375637,96518.0,96516.0,0.051848]
[1735233108712,0.12375637,96518.0,96517.0,0.1611]
[1735233108910,0.18399606,96531.0,96517.0,0.1611]
[1735233109109,0.18399606,96531.0,96517.0,0.45954332]
[1735233109306,0.00155475,96542.0,96517.0,0.75954332]
[1735233109609,0.051824,96563.0,96543.0,0.051834]
[1735233109925,0.18569127,96576.0,96543.0,0.051834]
[1735233110218,0.051825,96560.0,96544.0,0.051833]
[1735233110609,0.051821,96568.0,96559.0,0.18333464]
[1735233110918,0.051823,96565.0,96559.0,0.48022321]
[1735233111910,0.051823,96564.0,96559.0,0.48122321]
[1735233112105,0.051823,96564.0,96563.0,0.18333464]
[1735233112318,0.01826325,96582.0,96563.0,0.18333464]
[1735233112509,0.31826325,96582.0,96563.0,0.48022321]
[1735233112921,0.051823,96564.0,96563.0,0.29688857]
[1735233114606,0.051823,96564.0,96563.0,0.29788857]
[1735233115018,0.051823,96564.0,96563.0,0.29688857]
[1735233115518,0.151823,96564.0,96563.0,0.29688857]
[1735233116417,0.051823,96564.0,96563.0,0.29688857]
[1735233120421,0.051837,96538.0,96524.0,0.1754]
[1735233120617,0.051837,96538.0,96532.0,0.051839]
[1735233120814,0.051837,96538.0,96533.0,0.051839]
[1735233121021,0.051823,96564.0,96528.0,0.176]
[1735233121207,0.051828,96554.0,96545.0,0.051833]
[1735233121412,0.051828,96554.0,96544.0,0.051833]
[1735233121607,0.05183,96551.0,96545.0,0.1751]
[1735233122125,0.051823,96564.0,96545.0,0.1751]
[1735233122126,0.051831,96549.0,96545.0,0.1751]
[1735233122621,0.051831,96549.0,96545.0,0.1771]
[1735233123014,0.051823,96564.0,96545.0,0.1771]
[1735233123216,0.051832,96547.0,96545.0,0.1771]
[1735233123416,0.051832,96547.0,96545.0,0.01756781]
[1735233124312,0.051832,96547.0,96545.0,0.01956781]
[1735233124515,0.051832,96547.0,96545.0,0.01856781]
[1735233124824,0.051832,96547.0,96545.0,0.01656781]
[1735233125220,0.051832,96547.0,96545.0,0.01556781]
[1735233125424,0.051832,96547.0,96545.0,0.002]
[1735233126722,0.051832,96547.0,96545.0,0.001]
[1735233126921,0.051832,96547.0,96545.0,0.003]
[1735233127321,0.051832,96547.0,96545.0,0.001]
[1735233127830,0.330215,96578.0,96532.0,0.23340474]
[1735233128120,0.630215,96578.0,96532.0,0.23340474]
[1735233128326,0.051838,96535.0,96532.0,0.18156474]
[1735233128912,0.051824,96561.0,96532.0,0.18156474]
[1735233129217,0.051839,96534.0,96532.0,0.18156474]
[1735233129519,0.051839,96534.0,96532.0,0.18356474]
[1735233130725,0.051839,96534.0,96532.0,0.19156474]
[1735233131225,0.051839,96534.0,96532.0,0.18756474]
[1735233131625,0.051839,96534.0,96533.0,0.1823325]
[1735233133322,0.1568,96551.0,96532.0,0.02056474]
[1735233133524,0.051839,96534.0,96532.0,0.02056474]
[1735233133922,0.051839,96534.0,96533.0,0.002]
[1735233134323,0.051839,96534.0,96533.0,0.006]
[1735233134629,0.051839,96534.0,96533.0,0.004]
[1735233134828,0.051839,96534.0,96532.0,0.01956474]
[1735233135427,0.051839,96534.0,96533.0,0.003]
[1735233136830,0.051839,96534.0,96533.0,0.001]
[1735233137130,0.051839,96534.0,96532.0,0.003]
[1735233137336,0.051839,96534.0,96532.0,0.001]
[1735233137526,0.051839,96534.0,96533.0,0.002]
[1735233137926,0.051839,96534.0,96533.0,0.003]
[1735233138530,0.051839,96534.0,96533.0,0.001]
[1735233138833,0.051839,96534.0,96533.0,0.29359927]
[1735233140033,0.051839,96534.0,96533.0,0.29559927]
[1735233140233,0.051833,96545.0,96533.0,0.29559927]
[1735233140425,0.09210704,96560.0,96533.0,0.29559927]
[1735233140625,0.051832,96548.0,96544.0,0.051833]
[1735233140827,0.051832,96548.0,96545.0,0.209333]
[1735233141029,0.051832,96548.0,96546.0,0.1641]
[1735233142427,0.051832,96548.0,96547.0,0.29259927]
[1735233142635,0.05183,96551.0,96547.0,0.29259927]
[1735233143637,0.01576081,96567.0,96547.0,0.29259927]
[1735233143838,0.051831,96549.0,96548.0,0.29259927]
[1735233145237,0.051831,96549.0,96548.0,0.66018858]
[1735233146333,0.051831,96549.0,96548.0,0.29259927]
[1735233146539,0.051831,96549.0,96548.0,0.29359927]
[1735233146741,0.051831,96549.0,96548.0,0.29459927]
[1735233147631,0.051831,96549.0,96548.0,0.29359927]
[1735233149638,0.051831,96549.0,96548.0,0.29559927]
[1735233150344,0.051831,96549.0,96548.0,0.29459927]
[1735233150729,0.051831,96549.0,96548.0,0.29259927]
[1735233152838,0.051831,96549.0,96548.0,0.29359927]
[1735233154043,0.051831,96549.0,96548.0,0.001]
[1735233154243,0.09210704,96559.0,96546.0,0.01506847]
[1735233154244,0.051832,96547.0,96546.0,0.01506847]
[1735233154444,0.051832,96547.0,96545.0,0.30657233]
[1735233155037,0.051832,96547.0,96545.0,0.35840433]
[1735233155438,0.051832,96547.0,96545.0,0.06586981]
[1735233155639,0.051828,96554.0,96545.0,0.06586981]
[1735233155838,0.051832,96547.0,96546.0,0.051832]
[1735233156948,0.051832,96547.0,96546.0,0.34465618]
[1735233157152,0.051827,96555.0,96553.0,0.051828]
[1735233157448,0.00155412,96561.0,96552.0,0.051829]
[1735233157838,0.051828,96555.0,96553.0,0.051829]
[1735233158349,0.051828,96554.0,96553.0,0.051829]
[1735233160741,0.051822,96566.0,96552.0,0.1624]
[1735233160742,0.051829,96553.0,96552.0,0.1624]
[1735233162742,0.05183,96551.0,96550.0,0.30652085]
[1735233162949,0.051829,96553.0,96548.0,0.30652085]
[1735233163544,0.1,96564.0,96548.0,0.30652085]
[1735233163733,0.09210704,96566.0,96548.0,0.30652085]
[1735233164145,0.05183,96551.0,96548.0,0.30652085]
[1735233164432,0.09210704,96562.0,96548.0,0.001]
[1735233164636,0.05183,96550.0,96548.0,0.001]
[1735233165047,0.05183,96550.0,96548.0,0.052831]
[1735233165250,0.05183,96550.0,96548.0,0.053831]
[1735233165434,0.09210704,96562.0,96548.0,0.002]
[1735233165638,0.051831,96549.0,96548.0,0.002]
[1735233165944,0.051831,96549.0,96548.0,0.001]
[1735233166343,0.051831,96549.0,96548.0,0.003]
[1735233166938,0.051831,96549.0,96548.0,0.002]
[1735233167543,0.051831,96549.0,96548.0,0.29499931]
[1735233167745,5.188e-05,96555.0,96548.0,0.29499931]
[1735233168247,0.051831,96549.0,96548.0,0.29399931]
[1735233168442,0.051831,96549.0,96548.0,0.29599931]
[1735233168845,0.051831,96549.0,96548.0,0.29499931]
[1735233171350,0.051831,96549.0,96548.0,0.002]
[1735233171948,0.051831,96549.0,96547.0,0.30685994]
[1735233173145,0.051836,96539.0,96538.0,0.36765344]
[1735233174150,0.051836,96539.0,96537.0,0.36765344]
[1735233175151,0.051836,96539.0,96535.0,0.18413248]
[1735233175346,0.051838,96536.0,96535.0,0.18413248]
[1735233176151,0.051838,96536.0,96535.0,4.8e-07]
[1735233176549,0.051841,96529.0,96528.0,0.24550997]
[1735233178143,0.051841,96529.0,96521.0,0.18300374]
[1735233178344,0.051841,96529.0,96528.0,0.006]
[1735233179352,0.051841,96529.0,96528.0,0.002]
[1735233179542,0.0930137,96534.0,96528.0,0.002]
[1735233179741,0.0930137,96534.0,96521.0,0.19000374]
[1735233179742,0.0930137,96534.0,96532.0,0.051839]
[1735233179948,0.0930137,96534.0,96533.0,0.1753]
[1735233180151,0.0930137,96534.0,96533.0,0.3519]
[1735233180856,0.051839,96535.0,96533.0,0.3519]
[1735233181943,0.051839,96535.0,96533.0,0.3539]
[1735233182939,0.051839,96535.0,96533.0,0.3549]
[1735233183350,0.051839,96535.0,96533.0,0.36843713]
[1735233184255,0.051839,96535.0,96533.0,0.36743713]
[1735233184453,0.051839,96535.0,96533.0,0.36643713]
[1735233184651,0.051839,96535.0,96533.0,0.36743713]
[1735233185152,0.051839,96535.0,96533.0,0.36643713]
[1735233185349,0.051839,96535.0,96533.0,0.36843713]
[1735233185755,0.051839,96535.0,96533.0,0.36643713]
[1735233185954,0.051839,96535.0,96533.0,0.36743713]
[1735233188057,0.051839,96535.0,96533.0,0.36843713]
[1735233188741,0.051839,96535.0,96533.0,0.36743713]
[1735233190052,0.051839,96535.0,96533.0,0.002]
[1735233190954,0.351839,96535.0,96533.0,1e-06]
[1735233191150,0.4172,96534.0,96524.0,0.24550997]
[1735233191350,0.4172,96534.0,96519.0,0.24550997]
[1735233191351,0.051846,96520.0,96519.0,0.24550997]
[1735233192648,0.051852,96510.0,96502.0,0.24550997]
[1735233193552,0.051852,96510.0,96508.0,0.01346266]
[1735233194353,0.051852,96510.0,96509.0,0.00355406]
[1735233194559,0.051852,96510.0,96509.0,0.00755406]
[1735233196957,0.051852,96510.0,96509.0,0.006]